bitfinex/quotes_SOLUSD_20240915
["timestamp","ask_amount","ask_price","bid_price","bid_amount"]
[1726427226783,46.166884,134.4,134.32,19.18613575]
[1726427227081,46.166884,134.4,134.32,14.93677257]
[1726427227469,46.166884,134.4,134.32,19.18613575]
[1726427227663,46.166884,134.4,134.32,14.93677257]
[1726427228162,46.166884,134.4,134.32,19.18613575]
[1726427228361,46.166884,134.4,134.32,14.93677257]
[1726427228777,46.166884,134.4,134.32,19.18613575]
[1726427228982,53.607284,134.4,134.3,4.24936318]
[1726427229285,23.776884,134.38,134.31,4.25094766]
[1726427229471,23.776884,134.36,134.31,4.25094766]
[1726427229789,23.776884,134.36,134.3,4.25094766]
[1726427230084,23.776884,134.36,134.29,4.25094766]
[1726427230557,46.166884,134.36,134.29,4.25094766]
[1726427230887,59.739984,134.36,134.29,4.25094766]
[1726427231063,52.297284,134.36,134.29,4.25094766]
[1726427231785,59.739984,134.36,134.29,4.25094766]
[1726427232276,385.6,134.35,134.28,0.2510376]
[1726427232468,23.776884,134.34,134.29,4.25553668]
[1726427232862,23.776884,134.34,134.29,4.25557239]
[1726427234174,23.776884,134.34,134.29,4.25773749]
[1726427234870,23.776884,134.34,134.29,4.25834288]
[1726427235070,23.776884,134.34,134.29,4.25841904]
[1726427235980,23.776884,134.34,134.28,0.2510376]
[1726427236193,23.776884,134.34,134.29,4.25838007]
[1726427236487,23.776884,134.34,134.28,0.2510376]
[1726427236782,23.776884,134.34,134.29,4.2583717]
[1726427237086,23.776884,134.34,134.28,0.2510376]
[1726427237287,23.776884,134.34,134.29,4.25846629]
[1726427237493,23.776884,134.34,134.28,0.2510376]
[1726427237693,23.776884,134.34,134.29,4.25846367]
[1726427237883,23.776884,134.34,134.28,0.2510376]
[1726427238087,23.776884,134.34,134.29,4.26018601]
[1726427238396,385.6,134.33,134.28,0.2510376]
[1726427238695,23.776884,134.32,134.29,4.26143186]
[1726427238894,23.776884,134.32,134.28,0.2510376]
[1726427239501,23.776884,134.32,134.29,4.26138847]
[1726427239685,23.776884,134.32,134.28,0.2510376]
[1726427239868,23.776884,134.32,134.29,4.26109946]
[1726427240073,23.776884,134.32,134.28,0.2510376]
[1726427240295,23.776884,134.32,134.29,4.26130915]
[1726427240489,23.776884,134.32,134.28,0.2510376]
[1726427240790,23.776884,134.32,134.29,4.26127654]
[1726427240996,23.776884,134.32,134.28,0.2510376]
[1726427241196,23.776884,134.32,134.29,4.26118996]
[1726427241499,23.776884,134.32,134.28,0.2510376]
[1726427241999,23.776884,134.32,134.29,4.26174958]
[1726427242176,23.776884,134.32,134.28,0.2510376]
[1726427242385,23.776884,134.32,134.29,4.26191511]
[1726427242709,385.6,134.33,134.3,4.26077608]
[1726427242869,385.6,134.33,134.28,0.2510376]
[1726427243290,385.6,134.33,134.31,14.93677257]
[1726427243480,385.6,134.33,134.32,4.26100424]
[1726427243882,385.6,134.33,134.32,19.19777681]
[1726427244095,4.5187,134.37,134.32,19.19777681]
[1726427244300,4.5187,134.37,134.33,4.26100424]
[1726427244598,4.5187,134.37,134.32,14.93677257]
[1726427244901,4.5187,134.37,134.33,4.2584865]
[1726427245100,23.776884,134.36,134.32,14.93677257]
[1726427245305,23.776884,134.36,134.33,4.25925924]
[1726427245600,23.776884,134.36,134.32,14.93677257]
[1726427246286,23.776884,134.36,134.31,14.93677257]
[1726427246485,23.776884,134.36,134.32,4.25947582]
[1726427246692,23.776884,134.36,134.3,14.93677257]
[1726427246889,23.776884,134.36,134.31,4.2598503]
[1726427247088,23.776884,134.36,134.32,4.2598503]
[1726427247291,23.776884,134.36,134.3,14.93677257]
[1726427247479,23.776884,134.36,134.31,4.2601807]
[1726427247681,23.776884,134.36,134.29,14.93677257]
[1726427247982,23.776884,134.36,134.3,4.25986332]
[1726427248183,23.776884,134.36,134.31,4.25986332]
[1726427248494,23.776884,134.36,134.29,14.93677257]
[1726427248874,23.776884,134.36,134.3,14.93677257]
[1726427249082,23.776884,134.36,134.31,14.93677257]
[1726427249879,23.776884,134.36,134.32,14.93677257]
[1726427250582,23.776884,134.36,134.31,14.93677257]
[1726427258425,23.776884,134.36,134.33,14.93677257]
[1726427261298,23.776884,134.36,134.32,14.93677257]
[1726427267907,23.776884,134.36,134.31,14.93677257]
[1726427271135,23.776884,134.36,134.31,24.26972526]
[1726427271329,23.776884,134.36,134.31,14.93677257]
[1726427271504,23.776884,134.36,134.31,24.26972526]
[1726427271826,23.776884,134.36,134.31,14.93677257]
[1726427272026,23.776884,134.36,134.31,24.26972526]
[1726427272201,23.776884,134.36,134.29,15.6911]
[1726427272202,23.776884,134.36,134.3,24.26972526]
[1726427272403,23.776884,134.36,134.3,14.93677257]
[1726427272620,23.776884,134.36,134.31,9.33261947]
[1726427272823,23.776884,134.34,134.31,9.33261947]
[1726427273004,23.776884,134.34,134.29,9.33261947]
[1726427273504,23.776884,134.34,134.28,9.58365707]
[1726427273821,23.776884,134.34,134.28,0.2510376]
[1726427275322,30.397684,134.34,134.28,0.2510376]
[1726427277634,60.231484,134.34,134.28,0.2510376]
[1726427279141,52.787684,134.34,134.28,0.2510376]
[1726427279344,30.397684,134.34,134.28,15.18781017]
[1726427281224,30.397684,134.34,134.28,0.2510376]
[1726427283339,390.1187,134.35,134.28,15.18781017]
[1726427283531,390.1187,134.35,134.3,14.93677257]
[1726427284035,385.6,134.35,134.31,14.93677257]
[1726427285537,23.776884,134.36,134.31,14.93677257]
[1726427289324,23.776884,134.36,134.32,6.81206451]
[1726427291540,23.776884,134.36,134.31,14.93677257]
[1726427291921,23.776884,134.36,134.32,6.81242614]
[1726427292550,23.776884,134.36,134.31,14.93677257]
[1726427292742,23.776884,134.36,134.32,6.81223249]
[1726427293039,23.776884,134.36,134.31,14.93677257]
[1726427293739,23.776884,134.36,134.32,6.81226668]
[1726427293937,23.776884,134.36,134.31,14.93677257]
[1726427294539,34.3498,134.39,134.31,14.93677257]
[1726427294540,12.55575794,134.42,134.35,14.93677257]
[1726427294723,12.55575794,134.42,134.32,16.4957]
[1726427294724,0.2510376,134.42,134.38,14.93677257]
[1726427294918,0.2510376,134.42,134.37,14.93677257]
[1726427296323,0.2510376,134.42,134.38,14.93677257]
[1726427296540,0.2510376,134.42,134.39,14.93677257]
[1726427296730,0.2510376,134.42,134.38,14.93677257]
[1726427297850,0.2510376,134.42,134.37,14.93677257]
[1726427298256,0.2510376,134.42,134.36,14.93677257]
[1726427298752,24.0279216,134.42,134.36,14.93677257]
[1726427298936,24.0279216,134.42,134.38,14.93677257]
[1726427300641,24.0279216,134.42,134.39,14.93677257]
[1726427300951,24.0279216,134.42,134.33,18.00592915]
[1726427300952,0.2510376,134.42,134.38,14.93677257]
[1726427305567,24.0279216,134.42,134.36,14.93677257]
[1726427306243,24.0279216,134.42,134.35,14.93677257]
[1726427306563,23.776884,134.4,134.35,14.93677257]
[1726427306744,24.0279216,134.42,134.35,14.93677257]
[1726427308461,24.0279216,134.42,134.37,14.93677257]
[1726427308685,0.2510376,134.42,134.39,14.93677257]
[1726427309245,0.2510376,134.42,134.4,14.93677257]
[1726427309863,0.2510376,134.42,134.41,14.93677257]
[1726427311042,0.2510376,134.42,134.37,16.4957]
[1726427311444,0.2510376,134.42,134.37,31.43247257]
[1726427311640,0.2510376,134.42,134.39,14.93677257]
[1726427315168,0.2510376,134.42,134.37,16.4957]
[1726427315169,0.2510376,134.42,134.38,14.93677257]
[1726427317369,0.2510376,134.42,134.41,14.93677257]
[1726427321305,0.2510376,134.42,134.39,14.93677257]
[1726427322783,0.2510376,134.42,134.37,16.4957]
[1726427322784,0.2510376,134.42,134.4,14.93677257]
[1726427328005,0.2510376,134.42,134.41,14.93677257]
[1726427330709,0.2510376,134.42,134.41,14.93677257]
[1726427333782,0.2510376,134.42,134.4,14.93677257]
[1726427333999,0.2510376,134.42,134.38,14.93677257]
[1726427341500,0.2510376,134.42,134.33,16.6665]
[1726427341703,23.776884,134.41,134.33,16.6665]
[1726427341889,23.776884,134.41,134.33,31.60327257]
[1726427342085,23.776884,134.41,134.34,14.93677257]
[1726427343991,24.0279216,134.42,134.33,16.6665]
[1726427344192,24.0279216,134.42,134.35,14.93677257]
[1726427344588,31.4673216,134.42,134.34,14.93677257]
[1726427345795,53.8573216,134.42,134.33,31.60327257]
[1726427347500,439.4573216,134.42,134.33,31.60327257]
[1726427350102,23.776884,134.4,134.33,31.60327257]
[1726427350625,20.0,134.41,134.33,31.60327257]
[1726427351119,23.776884,134.4,134.33,31.60327257]
[1726427354207,58.126084,134.4,134.32,14.93677257]
[1726427354514,58.126084,134.4,134.33,6.80364298]
[1726427354693,58.126084,134.4,134.31,14.93677257]
[1726427354897,58.126084,134.4,134.32,6.80484007]
[1726427355228,58.126084,134.4,134.31,14.93677257]
[1726427355393,46.166884,134.38,134.33,6.80635471]
[1726427355922,46.166884,134.38,134.32,6.80635471]
[1726427356106,46.166884,134.38,134.33,6.80635471]
[1726427356301,46.166884,134.38,134.32,6.80635471]
[1726427358018,23.776884,134.39,134.33,14.93677257]
[1726427358228,23.776884,134.39,134.33,21.74312728]
[1726427359406,409.376884,134.39,134.33,21.74312728]
[1726427360802,385.6,134.39,134.34,14.93677257]
[1726427362101,385.6,134.39,134.34,21.74312728]
[1726427362303,385.6,134.39,134.34,14.93677257]
[1726427362900,385.6,134.39,134.34,21.74312728]
[1726427363123,385.6,134.39,134.34,14.93677257]
[1726427364209,385.6,134.39,134.33,6.80643684]
[1726427364403,385.6,134.39,134.34,14.93677257]
[1726427364713,385.6,134.39,134.32,21.74320941]
[1726427365222,23.776884,134.39,134.32,21.74320941]
[1726427366102,46.166884,134.39,134.33,6.80643684]
[1726427366326,46.166884,134.39,134.32,21.74320941]
[1726427367227,46.166884,134.39,134.32,21.7459942]
[1726427368000,46.166884,134.39,134.32,21.74597368]
[1726427368704,46.166884,134.39,134.33,4.25569138]
[1726427369016,46.166884,134.39,134.34,4.25569138]
[1726427369212,46.166884,134.39,134.33,4.25569138]
[1726427369522,46.166884,134.39,134.34,4.25569138]
[1726427369725,46.166884,134.39,134.32,21.74597368]
[1726427369929,46.166884,134.39,134.33,4.25664971]
[1726427370222,46.166884,134.39,134.34,4.25664971]
[1726427370530,46.166884,134.39,134.32,21.74597368]
[1726427370703,46.166884,134.39,134.33,4.25710518]
[1726427370903,46.166884,134.39,134.34,4.25710518]
[1726427371104,431.766884,134.39,134.33,4.25710518]
[1726427371312,431.766884,134.39,134.34,4.25710518]
[1726427371528,431.766884,134.39,134.33,4.25710518]
[1726427371824,431.766884,134.39,134.34,4.25710518]
[1726427372019,431.766884,134.39,134.32,21.74597368]
[1726427372218,431.766884,134.39,134.33,4.25625886]
[1726427372419,431.766884,134.39,134.34,4.25625886]
[1726427372729,431.766884,134.39,134.32,6.80920111]
[1726427372916,439.207884,134.39,134.33,4.25675414]
[1726427373124,439.207884,134.39,134.34,4.25675414]
[1726427373424,439.207884,134.39,134.33,4.25675414]
[1726427373628,439.207884,134.39,134.34,4.25675414]
[1726427373823,439.207884,134.39,134.33,4.25675414]
[1726427374019,439.207884,134.39,134.34,4.25675414]
[1726427374221,439.207884,134.39,134.33,4.25675414]
[1726427374400,439.207884,134.39,134.34,4.25675414]
[1726427374604,439.207884,134.39,134.33,4.25675414]
[1726427374805,439.207884,134.39,134.34,4.25675414]
[1726427375032,439.207884,134.39,134.33,4.25675414]
[1726427375508,439.207884,134.39,134.34,4.25675414]
[1726427375831,439.207884,134.39,134.32,11.06667134]
[1726427376039,439.207884,134.39,134.33,4.25747023]
[1726427376210,439.207884,134.39,134.34,4.25747023]
[1726427376414,439.207884,134.39,134.33,4.25747023]
[1726427376607,439.207884,134.39,134.34,4.25747023]
[1726427376807,439.207884,134.39,134.33,4.25747023]
[1726427377112,53.607884,134.39,134.34,4.25733897]
[1726427377316,53.607884,134.39,134.33,4.25733897]
[1726427377530,53.607884,134.39,134.34,4.25733897]
[1726427377733,53.607884,134.39,134.33,4.25733897]
[1726427377928,53.607884,134.39,134.34,4.25733897]
[1726427378234,53.607884,134.39,134.33,4.25733897]
[1726427378424,53.607884,134.39,134.34,4.25727747]
[1726427378727,29.8323,134.37,134.32,6.80920111]
[1726427378919,23.776884,134.36,134.33,4.25776723]
[1726427379327,23.776884,134.36,134.3,16.0932]
[1726427379508,23.776884,134.36,134.32,6.81296499]
[1726427379832,23.776884,134.36,134.3,16.0932]
[1726427380048,23.776884,134.36,134.31,6.8129929]
[1726427380331,23.776884,134.36,134.32,6.81298218]
[1726427382232,23.776884,134.36,134.31,6.81298218]
[1726427382429,23.776884,134.36,134.32,6.81298218]
[1726427382637,23.776884,134.36,134.31,6.81298218]
[1726427382835,23.776884,134.36,134.32,6.81298218]
[1726427383023,23.776884,134.36,134.31,6.81298218]
[1726427383223,23.776884,134.36,134.32,6.81327624]
[1726427383422,23.776884,134.36,134.3,16.0932]
[1726427383750,23.776884,134.36,134.31,6.81327208]
[1726427383935,23.776884,134.36,134.32,6.81327208]
[1726427384238,23.776884,134.36,134.3,16.0932]
[1726427384417,23.776884,134.36,134.31,6.81336923]
[1726427384611,23.776884,134.36,134.32,6.81336923]
[1726427384933,23.776884,134.36,134.3,16.0932]
[1726427385123,53.609584,134.36,134.31,6.81387625]
[1726427385328,53.609584,134.36,134.28,15.18781017]
[1726427385636,53.609584,134.36,134.29,6.81485394]
[1726427385825,53.609584,134.36,134.3,6.81485394]
[1726427386136,46.166884,134.36,134.31,6.81485394]
[1726427386438,46.166884,134.36,134.28,15.18781017]
[1726427386607,46.166884,134.36,134.29,6.81473818]
[1726427386811,46.166884,134.36,134.3,6.81473818]
[1726427387039,46.166884,134.36,134.28,15.18781017]
[1726427387040,53.609584,134.36,134.28,15.18781017]
[1726427387330,53.609584,134.36,134.31,6.81512265]
[1726427387731,53.609584,134.36,134.28,15.18781017]
[1726427388028,53.609584,134.36,134.29,6.815078]
[1726427388229,53.609584,134.36,134.3,6.815078]
[1726427388543,53.609584,134.36,134.31,6.815078]
[1726427388742,53.609584,134.36,134.28,15.18781017]
[1726427388940,53.609584,134.36,134.29,21.75182514]
[1726427388941,46.166884,134.36,134.29,21.75182514]
[1726427389140,23.776884,134.36,134.3,6.81505257]
[1726427389437,23.776884,134.36,134.31,6.81505257]
[1726427389643,23.776884,134.36,134.32,6.81390901]
[1726427389858,23.776884,134.33,134.28,9.52145366]
[1726427390032,53.611284,134.33,134.29,6.81467612]
[1726427390750,46.166884,134.33,134.28,0.2510376]
[1726427390953,23.776884,134.31,134.28,0.2510376]
[1726427391372,23.776884,134.32,134.28,0.2510376]
[1726427393039,23.776884,134.3,134.28,0.2510376]
[1726427393238,10.7299,134.34,134.28,0.2510376]
[1726427393541,385.6,134.35,134.29,14.93677257]
[1726427393939,385.6,134.35,134.28,15.18781017]
[1726427394134,407.99,134.35,134.28,15.18781017]
[1726427394556,23.776884,134.34,134.28,15.18781017]
[1726427396263,23.776884,134.34,134.29,14.93677257]
[1726427397946,23.776884,134.34,134.3,14.93677257]
[1726427399739,385.6,134.37,134.3,14.93677257]
[1726427399939,11.9602,134.38,134.3,14.93677257]
[1726427399940,24.5187,134.38,134.32,14.93677257]
[1726427400162,24.5187,134.38,134.3,15.5603]
[1726427400163,4.5187,134.38,134.31,14.93677257]
[1726427401256,23.776884,134.37,134.31,14.93677257]
[1726427404173,23.776884,134.37,134.32,14.93677257]
[1726427404351,23.776884,134.37,134.33,14.93677257]
[1726427409574,23.776884,134.38,134.33,14.93677257]
[1726427409765,23.776884,134.38,134.32,14.93677257]
[1726427410574,23.776884,134.38,134.35,14.93677257]
[1726427411354,385.8510376,134.42,134.36,14.93677257]
[1726427411663,0.2510376,134.42,134.36,14.93677257]
[1726427411867,30.0804376,134.42,134.35,14.93677257]
[1726427412278,22.39,134.41,134.3,22.2258]
[1726427412457,22.39,134.41,134.32,14.93677257]
[1726427412778,66.166884,134.4,134.32,14.93677257]
[1726427412981,73.607384,134.4,134.32,14.93677257]
[1726427413152,78.126084,134.4,134.32,14.93677257]
[1726427415882,78.126084,134.4,134.33,14.93677257]
[1726427416582,23.776884,134.38,134.3,22.2258]
[1726427416782,23.776884,134.38,134.32,14.93677257]
[1726427427195,23.776884,134.38,134.3,22.2258]
[1726427427376,46.166884,134.38,134.3,22.2258]
[1726427428269,23.776884,134.36,134.3,22.2258]
[1726427428597,23.776884,134.36,134.3,15.5603]
[1726427430090,23.776884,134.36,134.32,14.93677257]
[1726427430296,23.776884,134.36,134.31,14.93677257]
[1726427431481,23.776884,134.36,134.3,30.49707257]
[1726427431684,23.776884,134.37,134.3,15.5603]
[1726427431889,23.776884,134.37,134.3,30.49707257]
[1726427433295,53.609084,134.37,134.3,15.5603]
[1726427436072,23.776884,134.35,134.28,0.2510376]
[1726427436273,23.776884,134.35,134.28,15.18781017]
[1726427436500,431.766884,134.35,134.28,0.2510376]
[1726427436691,43.776884,134.32,134.28,0.2510376]
[1726427436888,396.2428,134.35,134.28,15.18781017]
[1726427437087,23.776884,134.34,134.29,14.93677257]
[1726427437985,23.776884,134.34,134.3,14.93677257]
[1726427438190,385.6,134.35,134.3,14.93677257]
[1726427439580,385.6,134.35,134.29,14.93677257]
[1726427439779,23.776884,134.34,134.29,14.93677257]
[1726427440608,23.776884,134.34,134.3,4.26331457]
[1726427441008,23.776884,134.34,134.29,14.93677257]
[1726427441009,23.776884,134.34,134.31,4.26331457]
[1726427441305,23.776884,134.34,134.29,14.93677257]
[1726427441600,23.776884,134.34,134.3,4.26318699]
[1726427441799,23.776884,134.34,134.31,19.19995956]
[1726427441992,23.776884,134.34,134.32,4.26318699]
[1726427442197,23.776884,134.34,134.3,14.93677257]
[1726427442390,23.776884,134.34,134.31,4.2630071]
[1726427442695,23.776884,134.34,134.32,4.2630071]
[1726427442902,23.776884,134.34,134.29,14.93677257]
[1726427443104,23.776884,134.34,134.3,4.26392176]
[1726427443282,23.776884,134.35,134.31,4.26392176]
[1726427443482,23.776884,134.35,134.32,4.26392176]
[1726427444078,23.776884,134.35,134.29,14.93677257]
[1726427444579,23.776884,134.35,134.3,4.26411511]
[1726427444778,23.776884,134.35,134.31,4.26411511]
[1726427445002,23.776884,134.35,134.32,4.26411511]
[1726427445186,23.776884,134.35,134.29,14.93677257]
[1726427445499,23.776884,134.35,134.3,4.26419123]
[1726427445691,23.776884,134.35,134.31,4.26419123]
[1726427445896,23.776884,134.35,134.29,14.93677257]
[1726427446204,23.776884,134.35,134.3,4.26440713]
[1726427446388,23.776884,134.35,134.31,4.26440713]
[1726427446591,23.776884,134.35,134.29,14.93677257]
[1726427446788,23.776884,134.36,134.3,19.20120207]
[1726427446986,23.776884,134.36,134.3,14.93677257]
[1726427447198,23.776884,134.36,134.31,4.26413201]
[1726427447710,23.776884,134.36,134.3,14.93677257]
[1726427447906,26.9087,134.38,134.32,14.93677257]
[1726427448088,4.5187,134.38,134.33,14.93677257]
[1726427448296,4.5187,134.38,134.32,14.93677257]
[1726427448490,4.5187,134.38,134.31,30.69997257]
[1726427448996,4.5187,134.38,134.32,14.93677257]
[1726427449999,42.39,134.39,134.33,14.93677257]
[1726427450189,23.776884,134.38,134.33,14.93677257]
[1726427452190,23.776884,134.38,134.32,14.93677257]
[1726427454207,46.166884,134.38,134.31,30.69997257]
[1726427454510,53.608484,134.38,134.32,6.81704845]
[1726427454685,53.608484,134.38,134.31,15.7632]
[1726427455123,29.8323,134.37,134.31,15.7632]
[1726427455401,23.776884,134.36,134.3,14.93677257]
[1726427455611,23.776884,134.36,134.31,6.81879585]
[1726427455913,23.776884,134.36,134.31,14.93677257]
[1726427456117,43.776884,134.37,134.31,14.93677257]
[1726427456709,23.776884,134.35,134.31,14.93677257]
[1726427457091,43.776884,134.37,134.31,14.93677257]
[1726427457285,66.166884,134.37,134.31,14.93677257]
[1726427457490,73.609084,134.37,134.28,21.6070376]
[1726427457703,73.609084,134.37,134.29,14.93677257]
[1726427457892,73.609084,134.37,134.3,6.81940346]
[1726427458104,73.609084,134.37,134.31,6.81940346]
[1726427458411,73.609084,134.37,134.29,14.93677257]
[1726427458714,73.609084,134.37,134.3,6.82019244]
[1726427458920,73.609084,134.37,134.28,21.6070376]
[1726427458921,23.776884,134.35,134.28,21.6070376]
[1726427459097,53.610084,134.35,134.28,36.54381017]
[1726427459411,23.776884,134.33,134.31,6.82031165]
[1726427459912,29.8333,134.35,134.31,6.82031165]
[1726427459913,23.776884,134.34,134.31,6.82031165]
[1726427461502,385.6,134.36,134.31,6.82031165]
[1726427462012,385.6,134.36,134.31,21.75708422]
[1726427462601,385.6,134.36,134.33,14.93677257]
[1726427463122,385.6,134.36,134.34,14.93677257]
[1726427463308,385.6,134.4,134.34,14.93677257]
[1726427463635,385.6,134.4,134.3,6.1465]
[1726427463636,396.6631,134.41,134.35,14.93677257]
[1726427463924,0.2510376,134.42,134.36,14.93677257]
[1726427464634,0.2510376,134.42,134.37,14.93677257]
[1726427465924,0.2510376,134.42,134.33,15.1578]
[1726427466118,0.2510376,134.42,134.38,14.93677257]
[1726427466336,0.2510376,134.42,134.37,14.93677257]
[1726427466916,29.8301,134.41,134.33,15.1578]
[1726427467103,46.166884,134.4,134.33,15.1578]
[1726427467534,53.607484,134.4,134.33,15.1578]
[1726427468809,29.831,134.39,134.33,15.1578]
[1726427469008,23.776884,134.38,134.33,15.1578]
[1726427470723,66.166884,134.39,134.33,15.1578]
[1726427471726,73.608184,134.39,134.31,14.93677257]
[1726427472033,29.8315,134.38,134.31,14.93677257]
[1726427472232,23.776884,134.37,134.3,36.24107257]
[1726427473139,53.609184,134.37,134.3,21.3043]
[1726427473515,439.209184,134.37,134.3,21.3043]
[1726427477414,53.609184,134.37,134.3,21.3043]
[1726427479143,53.609184,134.37,134.3,15.1578]
[1726427480227,385.6,134.38,134.28,0.2510376]
[1726427480228,23.776884,134.34,134.28,0.2510376]
[1726427481141,439.210684,134.34,134.28,0.2510376]
[1726427482141,431.766884,134.34,134.28,0.2510376]
[1726427483751,409.376884,134.34,134.28,15.18781017]
[1726427485126,409.376884,134.34,134.3,14.93677257]
[1726427486439,20.0,134.36,134.29,14.93677257]
[1726427486632,20.0,134.36,134.3,14.93677257]
[1726427487037,22.39,134.37,134.3,14.93677257]
[1726427487559,23.776884,134.36,134.3,14.93677257]
[1726427490524,31.219584,134.36,134.29,14.93677257]
[1726427490747,31.219584,134.36,134.28,0.2510376]
[1726427490748,31.219584,134.36,134.28,15.18781017]
[1726427490950,23.776884,134.36,134.28,15.18781017]
[1726427491254,53.609584,134.36,134.28,0.2510376]
[1726427491433,53.609584,134.36,134.28,15.18781017]
[1726427492231,23.776884,134.34,134.28,15.18781017]
[1726427492554,23.776884,134.34,134.28,0.2510376]
[1726427494935,23.776884,134.34,134.28,15.18781017]
[1726427495141,23.776884,134.34,134.29,14.93677257]
[1726427498453,407.99,134.35,134.3,14.93677257]
[1726427498454,385.6,134.35,134.3,14.93677257]
[1726427498642,385.6,134.35,134.31,14.93677257]
[1726427500035,23.776884,134.34,134.31,14.93677257]
[1726427502260,385.6,134.35,134.32,14.93677257]
[1726427502464,23.776884,134.34,134.31,14.93677257]
[1726427502958,23.776884,134.32,134.28,0.2510376]
[1726427505245,23.776884,134.3,134.28,0.2510376]
[1726427505440,23.776884,134.31,134.28,0.2510376]
[1726427506557,385.6,134.32,134.28,15.18781017]
[1726427507343,10.5257,134.37,134.3,14.93677257]
[1726427507543,10.5257,134.37,134.31,14.93677257]
[1726427507949,10.5257,134.37,134.3,4.20327651]
[1726427508269,40.3579,134.37,134.31,4.20327651]
[1726427508661,23.776884,134.36,134.3,4.20327651]
[1726427508868,40.3579,134.37,134.31,4.20327651]
[1726427509169,40.3579,134.37,134.3,4.20327651]
[1726427509341,10.5257,134.37,134.31,4.20327651]
[1726427509549,4.5187,134.37,134.29,23.31671088]
[1726427509881,385.6,134.38,134.3,4.20292809]
[1726427510043,385.6,134.38,134.31,27.51963897]
[1726427510247,385.6,134.38,134.33,16.2574]
[1726427510662,385.6,134.38,134.34,4.20046459]
[1726427510859,385.6,134.38,134.33,16.2574]
[1726427511064,385.6,134.38,134.34,4.20026347]
[1726427511250,385.6,134.38,134.33,16.2574]
[1726427511447,385.6,134.38,134.34,4.20047773]
[1726427511752,385.6,134.38,134.33,39.57411088]
[1726427511947,385.6,134.38,134.33,16.2574]
[1726427512456,385.6,134.38,134.33,39.57411088]
[1726427513057,407.99,134.41,134.33,39.57411088]
[1726427513649,23.776884,134.4,134.33,39.57411088]
[1726427515975,23.776884,134.4,134.33,16.2574]
[1726427520574,23.776884,134.4,134.33,22.9802063]
[1726427520775,23.776884,134.4,134.33,16.2574]
[1726427521076,23.276884,134.4,134.33,22.97997856]
[1726427521462,23.276884,134.4,134.33,16.2574]
[1726427522379,22.39,134.39,134.33,16.2574]
[1726427523004,23.776884,134.38,134.33,16.2574]
[1726427523364,22.39,134.4,134.33,16.2574]
[1726427523365,23.776884,134.39,134.33,16.2574]
[1726427527490,46.166884,134.39,134.33,16.2574]
[1726427527670,53.608084,134.39,134.33,16.2574]
[1726427527871,22.39,134.37,134.33,16.2574]
[1726427528077,23.776884,134.36,134.33,16.2574]
[1726427529571,23.776884,134.38,134.33,16.2574]
[1726427529882,23.776884,134.38,134.33,31.17584747]
[1726427530477,23.776884,134.39,134.33,31.17584747]
[1726427530679,409.376884,134.39,134.33,31.17584747]
[1726427531087,409.376884,134.39,134.34,14.91844747]
[1726427531088,385.6,134.39,134.34,14.91844747]
[1726427532306,23.776884,134.38,134.34,14.91844747]
[1726427532482,385.6,134.39,134.33,16.2574]
[1726427532483,385.8510376,134.42,134.35,14.91844747]
[1726427532684,385.8510376,134.42,134.36,14.91844747]
[1726427532881,393.2904376,134.42,134.35,14.91844747]
[1726427533492,22.39,134.41,134.35,14.91844747]
[1726427534082,23.776884,134.4,134.36,14.91844747]
[1726427535807,23.776884,134.4,134.35,14.91844747]
[1726427536700,23.776884,134.4,134.34,14.91844747]
[1726427537082,23.776884,134.41,134.34,14.91844747]
[1726427537285,23.776884,134.41,134.33,16.2574]
[1726427537286,23.776884,134.41,134.35,14.91844747]
[1726427547118,46.166884,134.41,134.35,14.91844747]
[1726427547520,23.776884,134.41,134.36,14.91844747]
[1726427549429,23.776884,134.41,134.35,14.91844747]
[1726427549618,46.166884,134.41,134.35,14.91844747]
[1726427552023,46.166884,134.41,134.36,14.91844747]
[1726427552230,46.166884,134.41,134.35,14.91844747]
[1726427562122,44.666884,134.41,134.35,14.91844747]
[1726427562750,22.276884,134.41,134.35,14.91844747]
[1726427564751,44.666884,134.41,134.34,36.64274747]
[1726427571467,44.666884,134.41,134.34,21.7243]
[1726427571754,52.106884,134.41,134.34,21.7243]
[1726427572045,437.706884,134.41,134.35,4.20489692]